bitfinex/quotes_SOLUSD_20250518
["timestamp","ask_amount","ask_price","bid_price","bid_amount"]
[1747591294225,18.64964886,170.82,170.75,4.79720646]
[1747591294423,34.56560982,170.81,170.75,39.36281628]
[1747591294743,18.64964886,170.75,170.58,5.86213149]
[1747591294941,18.64964886,170.75,170.57,7.9792]
[1747591295131,6.12157365,170.82,170.57,7.9792]
[1747591295132,18.64964886,170.69,170.57,7.9792]
[1747591295329,5.85823081,170.7,170.57,7.9792]
[1747591295730,18.64964886,170.69,170.57,7.9792]
[1747591295935,34.56560982,170.6,170.49,5.86517191]
[1747591296136,26.0,170.62,170.46,1.5368]
[1747591296647,10.0,170.68,170.46,1.5368]
[1747591296648,18.64964886,170.57,170.46,1.5368]
[1747591296856,26.0,170.54,170.46,1.5368]
[1747591297226,18.64964886,170.54,170.46,1.5368]
[1747591297428,18.64964886,170.51,170.37,7.9792]
[1747591297839,18.64964886,170.54,170.37,7.9792]
[1747591298242,18.64964886,170.54,170.37,13.84863398]
[1747591298441,34.56560982,170.51,170.37,13.84863398]
[1747591298956,5.86338317,170.55,170.4,26.0]
[1747591299162,5.86402043,170.54,170.37,22.65314494]
[1747591299526,18.64964886,170.53,170.39,5.86869006]
[1747591299728,5.86402043,170.54,170.39,5.86869006]
[1747591299932,5.86402043,170.54,170.37,28.52252484]
[1747591300235,18.64964886,170.6,170.53,34.56560982]
[1747591300433,5.85960389,170.66,170.41,1.17331449]
[1747591300646,34.56560982,170.61,170.46,18.64964886]
[1747591300835,5.85960389,170.66,170.47,1.17256773]
[1747591301040,5.85960389,170.66,170.44,26.0]
[1747591301250,34.56560982,170.56,170.45,5.86682311]
[1747591301445,18.64964886,170.63,170.45,5.86682311]
[1747591301662,18.64964886,170.59,170.49,34.56560982]
[1747591301844,18.64964886,170.59,170.41,26.0]
[1747591302040,18.64964886,170.59,170.49,34.56560982]
[1747591302236,26.0,170.61,170.44,26.0]
[1747591302562,5.86029067,170.64,170.57,34.56560982]
[1747591302859,5.86029067,170.64,170.59,34.56560982]
[1747591303165,14.64759913,170.68,170.58,34.56560982]
[1747591303166,24.50890942,170.67,170.58,34.56560982]
[1747591303332,24.50890942,170.67,170.53,6.4061]
[1747591303536,39.15706082,170.67,170.53,6.4061]
[1747591303755,18.64964886,170.63,170.45,6.3255]
[1747591303954,26.0,170.56,170.46,34.56560982]
[1747591304154,26.0,170.56,170.48,34.56560982]
[1747591304360,26.0,170.56,170.45,6.3255]
[1747591304361,44.64964886,170.59,170.5,34.56560982]
[1747591304745,34.56560982,170.56,170.5,34.56560982]
[1747591304957,44.64964886,170.59,170.45,6.3255]
[1747591305139,18.64964886,170.57,170.45,6.3255]
[1747591305368,34.56560982,170.54,170.45,6.3255]
[1747591305544,26.0,170.55,170.45,6.3255]
[1747591305745,34.56560982,170.53,170.45,6.3255]
[1747591305953,34.56560982,170.54,170.48,34.56560982]
[1747591306156,26.0,170.57,170.5,34.56560982]
[1747591306357,5.86063412,170.63,170.54,34.56560982]
[1747591306679,34.56560982,170.61,170.48,26.0]
[1747591306968,34.56560982,170.59,170.48,26.0]
[1747591307163,40.42694084,170.61,170.49,5.86544665]
[1747591307365,6.4355,170.74,170.58,34.56560982]
[1747591307366,5.86090705,170.63,170.58,34.56560982]
[1747591307545,34.56560982,170.65,170.59,34.56560982]
[1747591307737,5.85926056,170.67,170.54,1.5838]
[1747591308142,5.85926056,170.67,170.58,34.56560982]
[1747591308364,34.56560982,170.65,170.59,34.56560982]
[1747591308570,5.85926056,170.67,170.54,1.5838]
[1747591308864,34.56560982,170.64,170.54,1.5838]
[1747591309066,5.85926056,170.67,170.61,34.56560982]
[1747591309265,34.41538932,170.71,170.66,34.56560982]
[1747591309266,40.27339065,170.71,170.66,34.56560982]
[1747591309454,34.56560982,170.67,170.54,1.5838]
[1747591309768,34.56560982,170.59,170.54,1.5838]
[1747591309966,44.64964886,170.65,170.54,1.5838]
[1747591310151,34.56560982,170.57,170.54,1.5838]
[1747591310353,26.0,170.62,170.42,1.5737]
[1747591310564,26.0,170.58,170.42,1.5737]
[1747591310864,10.0,170.64,170.42,1.5737]
[1747591310865,34.56560982,170.48,170.42,1.5737]
[1747591311049,34.56560982,170.49,170.43,34.56560982]
[1747591311252,5.8657907,170.48,170.43,34.56560982]
[1747591311444,34.56560982,170.46,170.42,1.5737]
[1747591311647,5.8657907,170.48,170.42,1.5737]
[1747591312171,20.53026747,170.48,170.42,1.5737]
[1747591312508,34.56560982,170.47,170.42,1.5737]
[1747591312646,5.8657907,170.48,170.42,1.5737]
[1747591312843,34.56560982,170.47,170.42,1.5737]
[1747591313047,34.56560982,170.48,170.42,36.13930982]
[1747591313244,34.56560982,170.49,170.42,1.5737]
[1747591313472,18.64964886,170.53,170.44,34.56560982]
[1747591313684,34.56560982,170.5,170.44,34.56560982]
[1747591313976,34.56560982,170.5,170.42,1.5737]
[1747591313977,18.64964886,170.53,170.42,7.44131829]
[1747591314356,34.56560982,170.48,170.42,36.13930982]
[1747591314556,18.64964886,170.53,170.43,34.56560982]
[1747591314767,34.56560982,170.5,170.44,34.56560982]
[1747591314957,18.64964886,170.53,170.45,34.56560982]
[1747591315163,18.64964886,170.53,170.42,7.44154791]
[1747591315473,18.64964886,170.51,170.42,1.5737]
[1747591315653,44.64964886,170.51,170.42,1.5737]
[1747591315853,34.56560982,170.49,170.43,34.56560982]
[1747591316691,34.56560982,170.48,170.42,1.5737]
[1747591316893,34.56560982,170.5,170.44,34.56560982]
[1747591317100,34.56560982,170.51,170.45,34.56560982]
[1747591317296,40.43071245,170.5,170.42,1.5737]
[1747591317497,34.56560982,170.47,170.42,1.5737]
[1747591317800,34.56560982,170.48,170.42,1.5737]
[1747591317975,34.56560982,170.47,170.42,1.5737]
[1747591318177,18.64964886,170.49,170.42,1.5737]
[1747591318383,34.56560982,170.44,170.38,34.56560982]
[1747591318600,34.56560982,170.42,170.34,1.5344]
[1747591318770,34.56560982,170.35,170.28,6.2297]
[1747591318973,34.56560982,170.29,170.2,12.10491552]
[1747591319192,18.64964886,170.31,170.2,40.79530982]
[1747591319399,18.64964886,170.31,170.18,1.6121487]
[1747591319400,53.21525868,170.28,170.18,1.6121487]
[1747591319597,53.21525868,170.28,170.18,36.17775852]
[1747591319899,53.21525868,170.28,170.18,0.0316487]
[1747591320081,44.64964886,170.24,170.18,0.0316487]
[1747591320275,26.0,170.16,170.01,5.88200694]
[1747591320469,26.0,170.16,169.89,86.96560982]
[1747591320470,18.64964886,170.15,169.9,1.17565744]
[1747591320676,26.0,170.12,170.01,37.57638875]
[1747591320904,26.0,170.12,170.01,3.01077893]
[1747591321103,26.78062226,170.19,170.01,3.01077893]
[1747591321104,34.56560982,170.02,170.01,3.01077893]
[1747591321287,26.0,170.09,169.91,14.71327735]
[1747591321476,26.0,170.02,169.8,2.5114984]
[1747591321679,10.0,169.99,169.81,1.17664602]
[1747591321898,44.56560982,169.96,169.81,1.17664602]
[1747591322197,10.0,169.9,169.81,1.17664602]
[1747591322403,10.0,169.89,169.7,1.17711763]
[1747591322573,10.0,169.94,169.7,1.17711763]
[1747591322773,18.64964886,169.98,169.79,25.4106755]
[1747591323083,44.64964886,169.95,169.79,10.68660459]
[1747591323400,10.0,169.87,169.59,5.89657409]
[1747591323618,10.0,169.86,169.61,14.73941489]
[1747591323814,10.0,169.85,169.62,1.17704985]
[1747591324019,5.88352568,169.97,169.61,14.73941489]
[1747591324020,10.0,169.83,169.61,1.17730076]
[1747591324231,10.0,169.93,169.62,1.17816829]
[1747591324522,36.0,169.94,169.84,34.56560982]
[1747591324823,10.0,169.99,169.78,219.8]
[1747591325034,14.70158983,170.05,169.78,219.8]
[1747591325035,10.0,170.0,169.81,26.0]
[1747591325186,10.0,170.02,169.82,1.17720407]
[1747591325390,10.0,170.02,169.83,5.88824118]
[1747591325694,9.0,169.97,169.84,1.17698049]
[1747591325906,9.0,169.97,169.82,5.88840805]
[1747591325907,9.0,169.97,169.8,5.88920378]
[1747591326223,9.0,169.92,169.78,219.8]
[1747591326398,9.0,169.93,169.78,219.8]
[1747591326601,20.58600896,170.02,169.78,219.8]
[1747591326602,9.0,170.0,169.91,34.56560982]
[1747591326935,9.0,170.0,169.82,1.0]
[1747591326936,9.0,170.02,169.98,34.56560982]
[1747591327118,5.87980071,170.08,169.9,1.0]
[1747591327308,5.87796229,170.13,170.0,26.0]
[1747591327609,5.87560883,170.2,170.0,26.0]
[1747591327810,9.0,170.18,170.0,27.0]
[1747591328012,14.87560883,170.2,170.15,34.56560982]
[1747591328213,14.87491904,170.22,170.17,34.56560982]
[1747591328514,9.0,170.18,170.04,1.1756403]
[1747591328716,9.0,170.2,170.04,1.1756403]
[1747591328914,9.0,170.16,170.04,1.1756403]
[1747591329218,9.0,170.14,170.0,26.0]
[1747591329423,9.0,170.14,170.01,5.88200694]
[1747591329593,9.0,170.1,170.05,34.56560982]
[1747591329925,9.0,170.08,169.97,219.92]
[1747591330304,9.0,170.1,170.04,34.56560982]
[1747591330614,14.87673477,170.17,170.09,34.56560982]
[1747591330788,5.87673477,170.17,170.03,26.0]
[1747591330993,5.87592771,170.19,170.03,27.17570531]
[1747591331193,5.87440521,170.23,170.17,34.56560982]
[1747591331419,5.87440521,170.23,170.18,34.56560982]
[1747591331624,5.87302519,170.27,170.22,34.56560982]
[1747591331950,5.87302519,170.27,170.25,34.56560982]
[1747591332169,5.87130108,170.32,170.16,1.17491325]
[1747591332332,20.54955378,170.32,170.14,26.0]
[1747591332536,20.54955378,170.32,170.24,34.56560982]
[1747591332726,20.54955378,170.32,170.14,26.0]
[1747591332923,20.54955378,170.32,170.28,34.56560982]
[1747591333243,5.87130108,170.32,170.29,34.56560982]
[1747591333733,5.87130108,170.32,170.28,34.56560982]
[1747591333927,9.0,170.3,170.18,26.0]
[1747591334340,9.0,170.3,170.26,34.56560982]
[1747591334546,5.87130108,170.32,170.18,26.0]
[1747591334547,9.0,170.31,170.27,34.56560982]
[1747591334749,9.0,170.36,170.3,34.56560982]
[1747591335064,5.86923347,170.38,170.35,34.56560982]
[1747591335250,5.87130108,170.32,170.25,219.92]
[1747591335449,9.0,170.35,170.29,34.56560982]
[1747591335629,9.0,170.24,169.9,4.01245674]
[1747591335825,9.0,170.09,169.91,21.77347299]
[1747591336168,9.0,170.09,169.96,34.56560982]
[1747591336169,9.0,170.02,169.96,34.56560982]
[1747591336327,9.0,170.02,169.95,34.56560982]
[1747591336528,9.0,170.02,169.91,5.88546877]
[1747591336529,9.0,170.02,169.96,34.56560982]
[1747591336728,9.0,170.05,169.91,5.88546877]
[1747591336942,9.0,170.03,169.87,5.88685465]
[1747591337165,9.0,170.04,169.89,34.56560982]
[1747591337368,9.0,170.05,170.02,34.56560982]
[1747591337543,5.87943144,170.09,170.04,34.56560982]
[1747591337736,5.87943144,170.09,169.94,219.88]
[1747591337737,5.87943144,170.09,170.08,34.56560982]
[1747591338053,5.87813951,170.13,170.08,34.56560982]
[1747591338265,5.8772682,170.15,170.0,26.0]
[1747591338441,5.8772682,170.15,169.98,26.0]
[1747591338637,14.8772682,170.15,170.09,34.56560982]
[1747591338838,9.0,170.12,170.09,34.56560982]
[1747591339041,9.0,170.14,170.09,34.56560982]
[1747591339253,9.0,170.13,170.01,26.0]
[1747591339432,5.87820362,170.12,170.08,34.56560982]
[1747591339753,5.87820362,170.12,170.09,34.56560982]
[1747591339959,5.87776735,170.14,170.1,34.56560982]
[1747591340259,5.87578588,170.19,170.03,26.0]
[1747591340435,9.0,170.07,169.95,5.88408355]
[1747591340634,9.0,170.04,169.94,219.88]
[1747591341166,9.0,170.02,169.86,6.1287]
[1747591341336,14.88112839,170.04,169.89,34.56560982]
[1747591341539,5.88052632,170.06,170.03,34.56560982]
[1747591341851,14.87837623,170.12,170.05,34.56560982]
[1747591342048,9.0,170.13,169.95,27.17607786]
[1747591342243,9.0,170.1,169.95,27.17607786]
[1747591342548,9.0,170.13,169.95,27.17607786]
[1747591342757,9.0,170.12,169.95,27.17607786]
[1747591342967,9.0,170.13,170.08,34.56560982]
[1747591343270,5.87647646,170.17,170.12,34.56560982]
[1747591343472,9.0,170.22,170.09,31.8791566]
[1747591343637,9.0,170.2,170.05,6.6244]
[1747591344065,9.0,170.2,170.15,34.56560982]
[1747591344367,9.0,170.17,170.1,34.56560982]
[1747591344673,9.0,170.2,170.04,1.5402]
[1747591344864,5.87489412,170.22,170.18,34.56560982]
[1747591345161,9.0,170.16,170.1,34.56560982]
[1747591345362,9.0,170.14,170.06,225.82001504]
[1747591345545,9.0,170.14,170.1,34.56560982]
[1747591345749,5.87633847,170.18,170.13,34.56560982]
[1747591345944,9.0,170.24,170.17,34.56560982]
[1747591346143,9.0,170.32,170.23,34.56560982]
[1747591346347,43.56560982,170.35,170.29,34.56560982]
[1747591346549,5.87061171,170.34,170.3,34.56560982]
[1747591346744,9.0,170.39,170.23,26.0]
[1747591346967,9.0,170.4,170.23,26.0]
[1747591347267,9.0,170.43,170.39,34.56560982]
[1747591347442,5.86668932,170.46,170.4,34.56560982]
[1747591347637,5.86668932,170.46,170.42,34.56560982]
[1747591347840,14.86620068,170.47,170.43,34.56560982]
[1747591348042,9.0,170.48,170.43,34.56560982]
[1747591348250,9.0,170.48,170.35,26.0]
[1747591348251,9.0,170.51,170.47,34.56560982]
[1747591348470,5.86468926,170.52,170.36,219.88]
[1747591348667,5.86389591,170.54,170.39,26.0]
[1747591348868,49.42950573,170.54,170.37,1.17342934]
[1747591349048,9.0,170.47,170.36,219.88]
[1747591349249,9.0,170.44,170.36,219.88]
[1747591349475,9.0,170.45,170.36,225.74978267]
[1747591349666,9.0,170.45,170.36,219.88]
[1747591349667,9.0,170.41,170.36,219.88]
[1747591349970,9.0,170.39,170.36,34.56560982]
[1747591350276,9.0,170.35,170.31,34.56560982]
[1747591350575,9.0,170.36,170.3,34.56560982]
[1747591350776,9.0,170.34,170.17,18.64964886]
[1747591351075,9.0,170.37,170.28,34.56560982]
[1747591351378,66.43537785,170.37,170.14,2.17463989]
[1747591351554,9.0,170.31,170.15,5.8771672]
[1747591351874,9.0,170.31,170.27,34.56560982]
[1747591352084,9.0,170.31,170.15,5.8771672]
[1747591352268,9.0,170.25,170.15,5.8771672]
[1747591352594,43.56560982,170.21,170.12,219.88]
[1747591352747,9.0,170.21,170.12,219.88]
[1747591352952,9.0,170.25,170.2,34.56560982]
[1747591353151,9.0,170.28,170.15,26.0]
[1747591353380,9.0,170.28,170.25,34.56560982]
[1747591353579,9.0,170.29,170.16,7.05189952]
[1747591353933,9.0,170.3,170.27,34.56560982]
[1747591354067,9.0,170.35,170.29,34.56560982]
[1747591354246,9.0,170.36,170.21,26.0]
[1747591354575,9.0,170.29,170.19,26.0]
[1747591354885,9.0,170.33,170.28,34.56560982]
[1747591355095,9.0,170.32,170.28,34.56560982]
[1747591355258,9.0,170.31,170.29,34.56560982]
[1747591355589,9.0,170.41,170.3,34.56560982]
[1747591355793,9.0,170.45,170.4,34.56560982]
[1747591356088,9.0,170.47,170.42,34.56560982]
[1747591356285,9.0,170.48,170.46,34.56560982]
[1747591356449,9.0,170.48,170.34,26.0]
[1747591356450,9.0,170.48,170.45,34.56560982]
[1747591356654,9.0,170.5,170.47,34.56560982]
[1747591356870,3.01590954,170.58,170.49,36.20110982]
[1747591357081,57.65498574,170.68,170.58,26.0]
[1747591357082,7.65498574,170.68,170.58,26.0]
[1747591357354,7.65498574,170.68,170.67,34.56560982]
[1747591357566,8.80007613,170.86,170.7,26.0]
[1747591358091,14.65309082,170.86,170.7,26.0]
[1747591358283,34.56560982,170.84,170.7,26.0]
[1747591358594,34.56560982,170.83,170.68,26.0]
[1747591358768,29.28495316,170.86,170.77,34.56560982]
[1747591358973,29.28495316,170.86,170.67,219.76]
[1747591359167,55.28495316,170.86,170.7,26.0]
[1747591359383,5.85514374,170.79,170.67,219.76]
[1747591359572,34.56560982,170.78,170.67,219.76]
[1747591359884,5.85514374,170.79,170.6,26.0]
[1747591360086,26.0,170.78,170.69,34.56560982]
[1747591360389,30.49300309,170.79,170.61,219.56]
[1747591360590,26.0,170.76,170.64,34.56560982]
[1747591360785,34.56560982,170.7,170.61,219.56]
[1747591361280,34.56560982,170.68,170.61,219.56]
[1747591361478,20.5014058,170.72,170.66,34.56560982]
[1747591361680,49.75124376,170.85,170.71,34.56560982]
[1747591361993,49.75124376,170.85,170.74,34.56560982]
[1747591362190,20.48580625,170.85,170.64,26.0]
[1747591362400,34.56560982,170.76,170.62,26.0]
[1747591362573,34.56560982,170.75,170.62,26.0]
[1747591362776,26.0,170.82,170.72,34.56560982]
[1747591363001,34.56560982,170.8,170.64,26.0]
[1747591363195,34.56560982,170.75,170.61,219.56]
[1747591363398,34.56560982,170.71,170.61,219.56]
[1747591363586,26.0,170.75,170.65,34.56560982]
[1747591363587,5.85823081,170.7,170.65,34.56560982]
[1747591363789,5.85823081,170.7,170.66,34.56560982]
[1747591363987,5.85823081,170.7,170.61,219.56]
[1747591364188,20.50380784,170.7,170.61,219.56]
[1747591364502,20.50380784,170.7,170.61,34.56560982]
[1747591364702,20.50380784,170.7,170.62,34.56560982]
[1747591364876,5.85823081,170.7,170.67,34.56560982]
[1747591365180,5.85823081,170.7,170.58,245.5]
[1747591365499,40.64256567,170.74,170.67,34.56560982]
[1747591365500,5.85720142,170.73,170.67,34.56560982]
[1747591365697,20.50020499,170.73,170.68,34.56560982]
[1747591366415,20.50020499,170.73,170.66,34.56560982]
[1747591366587,20.50020499,170.73,170.67,34.56560982]
[1747591367109,20.50020499,170.73,170.61,26.0]
[1747591367110,18.64964886,170.72,170.58,245.5]
[1747591367290,34.56560982,170.67,170.6,34.56560982]
[1747591367606,34.56560982,170.63,170.58,219.5]
[1747591367926,60.56560982,170.69,170.62,34.56560982]
[1747591368080,20.50020499,170.73,170.65,34.56560982]
[1747591368273,18.64964886,170.72,170.58,219.5]
[1747591368583,5.85994726,170.65,170.6,34.56560982]
[1747591368777,5.85994726,170.65,170.61,34.56560982]
[1747591368974,20.50981541,170.65,170.59,34.56560982]
[1747591369205,20.50981541,170.65,170.58,219.5]
[1747591369375,5.85994726,170.65,170.62,34.56560982]
[1747591369698,40.42555708,170.65,170.58,219.5]
[1747591369902,34.56560982,170.62,170.58,219.5]
[1747591370076,34.56560982,170.64,170.58,254.06560982]
[1747591370284,34.56560982,170.64,170.58,219.5]
[1747591370605,5.86063412,170.63,170.58,254.06560982]
[1747591370781,5.86063412,170.63,170.59,34.56560982]
[1747591371101,5.86063412,170.63,170.44,10.0]
[1747591371102,18.64964886,170.58,170.38,1.6417]
[1747591371320,18.64964886,170.58,170.39,219.4]
[1747591371476,26.0,170.59,170.5,34.56560982]
[1747591371678,49.81539002,170.63,170.54,34.56560982]
[1747591371896,34.56560982,170.55,170.47,34.56560982]
[1747591372108,44.64964886,170.62,170.53,34.56560982]
[1747591372282,18.64964886,170.61,170.51,34.56560982]
[1747591372483,55.07782924,170.63,170.56,34.56560982]
[1747591372702,20.51221942,170.63,170.58,34.56560982]
[1747591373010,34.56560982,170.62,170.49,26.0]
[1747591373182,20.51221942,170.63,170.57,34.56560982]
[1747591373378,20.51221942,170.63,170.49,26.0]
[1747591373379,55.07782924,170.63,170.49,1.17256268]
[1747591373602,55.07782924,170.63,170.56,34.56560982]
[1747591373992,14.6515853,170.63,170.56,34.56560982]
[1747591374209,14.6515853,170.63,170.57,34.56560982]
[1747591374510,49.21719512,170.63,170.57,34.56560982]
[1747591374890,14.6515853,170.63,170.57,34.56560982]
[1747591375290,55.07782924,170.63,170.57,34.56560982]
[1747591375492,20.51221942,170.63,170.58,34.56560982]
[1747591375879,20.51221942,170.63,170.49,1.17256268]
[1747591375880,5.86063412,170.63,170.49,1.17256268]
[1747591376085,5.86063412,170.63,170.58,34.56560982]
[1747591376448,34.56560982,170.69,170.62,34.56560982]
[1747591376619,34.56560982,170.68,170.62,34.56560982]
[1747591376789,18.64964886,170.75,170.59,34.56560982]
[1747591376989,34.56560982,170.69,170.63,34.56560982]
[1747591377294,5.85857402,170.69,170.65,34.56560982]
[1747591377498,5.85857402,170.69,170.66,34.56560982]
[1747591377716,5.85857402,170.69,170.52,35.73798642]
[1747591377717,5.85720142,170.73,170.68,34.56560982]
[1747591377891,5.85720142,170.73,170.62,26.0]
[1747591377892,5.85720142,170.73,170.72,34.56560982]
[1747591378305,5.85548659,170.78,170.72,34.56560982]
[1747591378593,5.85548659,170.78,170.66,26.0]
[1747591378594,20.49420306,170.78,170.73,34.56560982]
[1747591378804,34.56560982,170.76,170.64,26.0]
[1747591379112,20.49420306,170.78,170.73,34.56560982]
[1747591379488,20.49420306,170.78,170.74,34.56560982]
[1747591379821,34.56560982,170.75,170.61,1.1713827]
[1747591379999,20.49420306,170.78,170.72,34.56560982]
[1747591380220,20.49420306,170.78,170.64,1.17143487]
[1747591380528,20.49420306,170.78,170.74,34.56560982]
[1747591380714,5.85548659,170.78,170.73,34.56560982]
[1747591380916,40.42109641,170.78,170.64,1.17143487]
[1747591381109,34.56560982,170.75,170.64,1.17143487]
[1747591381307,34.56560982,170.75,170.6,245.38]
[1747591381308,34.56560982,170.72,170.6,245.38]
[1747591381508,20.49660341,170.76,170.67,34.56560982]
[1747591381711,20.49660341,170.76,170.72,34.56560982]
[1747591381918,5.8561724,170.76,170.74,34.56560982]
[1747591382119,5.8561724,170.76,170.64,1.17141525]
[1747591382120,5.85548659,170.78,170.75,34.56560982]
[1747591382304,6.4261,170.89,170.77,34.56560982]
[1747591382504,20.47262516,170.96,170.83,34.56560982]
[1747591382701,49.71923255,170.96,170.84,34.56560982]
[1747591382948,34.56560982,170.91,170.85,34.56560982]
[1747591383135,34.56560982,170.93,170.87,34.56560982]
[1747591383429,43.86991108,170.96,170.89,34.56560982]
[1747591383633,34.56560982,170.94,170.78,1.1706349]
[1747591383828,34.56560982,170.91,170.78,1.1706349]
[1747591384032,14.62330369,170.96,170.9,34.56560982]
[1747591384232,14.62330369,170.96,170.88,34.56560982]
[1747591384432,34.56560982,170.91,170.78,1.1706349]
[1747591384631,18.64964886,170.92,170.74,251.9564]
[1747591384825,18.64964886,170.92,170.81,34.56560982]
[1747591385032,34.56560982,170.88,170.83,34.56560982]
[1747591385333,5.85377275,170.83,170.78,34.56560982]
[1747591385516,34.56560982,170.82,170.76,34.56560982]
[1747591385713,20.48820464,170.83,170.78,34.56560982]
[1747591385907,34.56560982,170.9,170.82,34.56560982]
[1747591386129,34.56560982,170.83,170.74,219.32]
[1747591386335,34.56560982,170.8,170.74,219.32]
[1747591386542,18.64964886,170.87,170.76,34.56560982]
[1747591386815,26.0,170.88,170.8,34.56560982]
[1747591387037,26.0,170.9,170.82,34.56560982]
[1747591387234,18.64964886,170.95,170.75,1.17091723]
[1747591387544,18.64964886,170.9,170.82,34.56560982]
[1747591387711,34.56560982,170.87,170.74,219.32]
[1747591387915,18.64964886,170.9,170.74,219.32]
[1747591388125,34.56560982,170.86,170.8,34.56560982]
[1747591388516,18.64964886,170.9,170.78,34.56560982]
[1747591388721,18.64964886,170.9,170.8,34.56560982]
[1747591389028,18.64964886,170.9,170.75,1.17088934]
[1747591389233,34.56560982,170.86,170.8,34.56560982]
[1747591389437,34.56560982,170.84,170.75,1.17088934]
[1747591389621,34.56560982,170.83,170.78,34.56560982]
[1747591389815,26.0,170.88,170.78,34.56560982]
[1747591390038,26.0,170.88,170.79,34.56560982]
[1747591390250,20.48101116,170.89,170.77,26.0]
[1747591390419,5.85171747,170.89,170.87,34.56560982]
[1747591390624,5.85171747,170.89,170.78,1.17057771]
[1747591390823,20.48101116,170.89,170.78,1.17057771]
[1747591391028,18.64964886,170.88,170.74,219.32]
[1747591391234,18.64964886,170.88,170.78,34.56560982]
[1747591391465,20.48340843,170.87,170.81,34.56560982]
[1747591392018,34.56560982,170.85,170.74,245.32]
[1747591392348,18.64964886,170.83,170.65,6.3541]
[1747591392549,18.64964886,170.83,170.61,219.16]
[1747591392550,18.64964886,170.79,170.62,1.17142808]
[1747591392848,18.64964886,170.79,170.61,219.16]
[1747591393037,18.64964886,170.79,170.69,34.56560982]
[1747591393244,18.64964886,170.82,170.72,34.56560982]
[1747591393420,26.0,170.83,170.66,26.0]
[1747591393421,20.49180327,170.8,170.66,26.0]
[1747591393622,20.49180327,170.8,170.72,34.56560982]
[1747591393953,55.05741309,170.8,170.75,34.56560982]
[1747591394138,55.05741309,170.8,170.67,1.17134182]
[1747591394321,34.56560982,170.79,170.74,34.56560982]
[1747591394516,20.49180327,170.8,170.67,1.17134182]
[1747591394745,34.56560982,170.78,170.73,34.56560982]
[1747591395050,55.05741309,170.8,170.74,34.56560982]
[1747591395245,20.49180327,170.8,170.74,34.56560982]
[1747591395460,20.49180327,170.8,170.76,34.56560982]
[1747591395758,5.85480093,170.8,170.77,34.56560982]
[1747591396123,5.85377275,170.83,170.79,34.56560982]
[1747591396356,10.0,170.97,170.82,34.56560982]
[1747591396357,29.25326739,170.93,170.82,34.56560982]
[1747591396550,34.56560982,170.83,170.73,219.16]
[1747591396744,26.0,170.89,170.73,219.16]
[1747591396745,34.56560982,170.79,170.73,253.72560982]
[1747591396949,34.56560982,170.79,170.73,219.16]
[1747591397133,34.56560982,170.78,170.73,253.72560982]
[1747591397462,5.85548659,170.78,170.73,253.72560982]
[1747591397640,34.56560982,170.75,170.73,219.16]
[1747591398156,34.56560982,170.74,170.61,219.16]
[1747591398459,26.0,170.76,170.67,34.56560982]
[1747591398832,20.49420306,170.78,170.64,26.0]
[1747591399038,20.49420306,170.78,170.64,27.17150717]
[1747591399241,34.56560982,170.77,170.64,27.17150717]
[1747591399455,50.95734886,170.82,170.63,26.0]
[1747591399456,5.85720142,170.73,170.63,26.0]
[1747591399756,34.56560982,170.7,170.59,1.1715667]
[1747591399966,34.56560982,170.67,170.58,219.16]
[1747591400123,34.56560982,170.63,170.58,219.16]
[1747591400456,18.64964886,170.67,170.58,219.16]
[1747591400845,79.07221927,170.73,170.58,219.16]
[1747591401033,34.56560982,170.65,170.58,219.16]
[1747591401236,26.0,170.7,170.59,34.56560982]
[1747591401443,20.50500907,170.69,170.62,34.56560982]
[1747591401640,34.56560982,170.63,170.58,219.16]
[1747591401963,34.56560982,170.64,170.59,34.56560982]
[1747591402467,34.56560982,170.65,170.6,34.56560982]
[1747591402967,49.79787918,170.69,170.6,34.56560982]
[1747591403141,34.56560982,170.66,170.58,219.16]
[1747591403339,34.56560982,170.62,170.58,219.16]
[1747591403531,34.56560982,170.6,170.58,219.16]
[1747591403738,34.56560982,170.59,170.48,6.5904]
[1747591403937,26.0,170.63,170.48,6.5904]
[1747591404261,34.56560982,170.49,170.38,8.10873954]
[1747591404430,26.0,170.53,170.38,8.10873954]